[Event "8th Ali Ipek Tournament 2020"]
[Site "Ankara"]
[Date "2020.03.08"]
[Round "6.9"]
[White "Demirci, Murat"]
[Black "Kamisli, Yigit"]
[Result "1-0"]
[ECO "A24"]
[WhiteElo "1821"]
[BlackElo "1393"]
[Annotator "NA"]
[PlyCount "75"]
[EventDate "2020.03.04"]
[EventType "swiss"]
[EventCountry "TUR"]
[SourceTitle "playchess.com"]
[Source "ChessBase"]
[SourceQuality "1"]
[TimeControl "5400+30"]

1. Nf3 {[%emt 0:13:30]} Nf6 {[%emt 0:01:30]} 2. g3 {[%emt 0:00:30]} g6 {[%emt 0:00:30]} 3. Bg2 {[%emt 0:00:30]} Bg7 {[%emt 0:00:00]} 4. O-O {[%emt 0:00:30]} O-O {[%emt 0:00:00]} 5. c4 {[%emt 0:00:00]} d6 {[%emt 0:00:30]} 6. Nc3 {[%emt 0:00:00]} e5 {[%emt 0:02:30]} 7. d3 {[%emt 0:07:30]} Nbd7 {[%emt 0:03:30]} 8. e3 {[%emt 0:00:30] A24: English Opening vs King's Indian: Lines without ...Nc6.} Re8 {[%emt 0:04:30]} 9. e4 {[%emt 0:02:30] [#]} Nf8 $146 {[%emt 0:05:30]} ({Predecessor:} 9... c6 10. a3 Nf8 11. Kh1 h6 12. Ng1 Ne6 13. Nge2 Nc7 14. f4 exf4 15. Nxf4 Bg4 {½-½ (45) Kuzmichev,A (2118)-Siuniakov,I (2299) Kemerovo 2013}) 10. Rb1 {[%emt 0:02:30]} Nh5 {[%emt 0:06:30]} 11. b4 {[%emt 0:00:30]} f5 {[%emt 0:11:30]} 12. exf5 {[%emt 0:00:30]} Bxf5 {[%emt 0:04:30]} 13. Ng5 {[%emt 0:04:30]} Qc8 {[%emt 0:11:30]} 14. c5 {[%emt 0:06:30]} Be6 {[%emt 0:05:30]} 15. Qf3 {[%emt 0:14:30]} Rb8 {[%emt 0:07:30]} 16. cxd6 {[%emt 0:23:58]} cxd6 {[%emt 0:01:30]} 17. Nxe6 {[%emt 0:00:32]} Nxe6 {[%emt 0:04:30]} 18. Bd2 {[%emt 0:04:16]} Kh8 {[%emt 0:03:30]} 19. Ne4 {[%emt 0:03:08]} Qd7 {[%emt 0:02:30]} 20. Bh3 {[%emt 0:01:47]} Qe7 {[%emt 0:07:16]} 21. Be3 {[%emt 0:01:19]} b6 {[%emt 0:01:40]} 22. Qg4 {[%emt 0:03:24]} d5 {[%emt 0:04:41]} 23. Ng5 {[%emt 0:01:10]} Nxg5 {[%emt 0:00:47]} 24. Bxg5 {[%emt 0:00:19]} Bf6 {[%emt 0:00:43]} 25. Bd2 {[%emt 0:00:24]} Ng7 $11 {[%emt 0:01:00]} 26. Rfe1 {[%emt 0:01:47]} Qd6 {[%emt 0:04:03]} 27. Rbc1 {[%emt 0:01:39]} Nf5 {[%emt 0:01:12]} 28. Bc3 {[%emt 0:01:41]} Rbc8 {[%emt 0:03:14]} 29. Qf3 {[%emt 0:01:41]} Kg7 {[%emt 0:00:40]} 30. Bxf5 {[%emt 0:00:27]} Rf8 {[%emt 0:01:31]} 31. Bxc8 {[%emt 0:00:32]} Rxc8 {[%emt 0:00:30]} 32. Bxe5 {[%emt 0:01:22]} Qxe5 {[%emt 0:00:33]} 33. Rxe5 {[%emt 0:01:07]} Rxc1+ {[%emt 0:00:30]} 34. Kg2 {[%emt 0:00:30]} Bxe5 {[%emt 0:00:30]} 35. Qxd5 {[%emt 0:00:00]} Kf6 {[%emt 0:00:00]} 36. d4 {[%emt 0:00:17]} Bc7 {[%emt 0:00:18]} 37. h4 {[%emt 0:00:21]} b5 {[%emt 0:01:28]} 38. Qg5+ {[%emt 0:00:43]} 1-0

[Event "8th Ali Ipek Tournament 2020"]
[Site "Ankara"]
[Date "2020.03.08"]
[Round "6.10"]
[White "Ceneli, Mehmet Canay"]
[Black "Oktem, Ege Tuna"]
[Result "1/2-1/2"]
[ECO "D26"]
[WhiteElo "1431"]
[BlackElo "1546"]
[Annotator "NA"]
[PlyCount "130"]
[EventDate "2020.03.04"]
[EventType "swiss"]
[EventCountry "TUR"]
[SourceTitle "playchess.com"]
[Source "ChessBase"]
[SourceQuality "1"]
[TimeControl "5400+30"]

1. d4 {[%emt 0:00:30]} d5 {[%emt 0:00:30]} 2. c4 {[%emt 0:00:30]} dxc4 {[%emt 0:00:30]} 3. Nc3 {[%emt 0:00:30]} c5 {[%emt 0:01:30]} 4. e3 {[%emt 0:00:30]} cxd4 {[%emt 0:00:30]} 5. exd4 {[%emt 0:00:30]} e6 {[%emt 0:00:00]} 6. Bxc4 {[%emt 0:00:30]} Nf6 {[%emt 0:00:00]} 7. Nf3 {[%emt 0:01:30]} Nc6 {[%emt 0:00:30]} 8. O-O {[%emt 0:02:30]} Be7 {[%emt 0:00:30]} 9. Bf4 {[%emt 0:01:30]} O-O {[%emt 0:00:30]} 10. Rc1 {[%emt 0:03:30]} a6 {[%emt 0:02:30]} 11. a4 {[%emt 0:00:30]} Nb4 {[%emt 0:01:30]} 12. Qb3 {[%emt 0:09:30]} b6 {[%emt 0:02:30]} 13. Rfd1 {[%emt 0:04:30]} Bb7 {[%emt 0:02:30]} 14. Ne5 {[%emt 0:00:30]} Nbd5 {[%emt 0:02:30]} 15. Bg5 {[%emt 0:01:30]} Nxc3 {[%emt 0:01:30]} 16. bxc3 {[%emt 0:02:30]} Nd5 {[%emt 0:03:30]} 17. Bd2 {[%emt 0:01:30]} Bg5 {[%emt 0:00:30]} 18. Bxd5 {[%emt 0:06:30]} Bxd5 {[%emt 0:00:30]} 19. c4 {[%emt 0:00:00]} Bxd2 {[%emt 0:01:30]} 20. Rc2 {[%emt 0:01:00]} Bxg2 {[%emt 0:03:30]} 21. Rcxd2 {[%emt 0:01:30]} Bb7 {[%emt 0:00:30]} 22. Rd3 {[%emt 0:02:30]} Rc8 {[%emt 0:04:30]} 23. a5 {[%emt 0:02:30]} b5 {[%emt 0:00:30]} 24. cxb5 {[%emt 0:00:30]} Bd5 {[%emt 0:01:30]} 25. Qb4 {[%emt 0:00:30]} Rc1 {[%emt 0:04:30]} 26. Qd2 {[%emt 0:03:30]} Rxd1+ {[%emt 0:00:30]} 27. Qxd1 {[%emt 0:00:30]} Qxa5 {[%emt 0:00:30]} 28. bxa6 {[%emt 0:00:30]} Qxa6 {[%emt 0:00:30]} 29. Rg3 {[%emt 0:00:30]} Ra8 {[%emt 0:00:30]} 30. Rc3 {[%emt 0:03:30]} h6 {[%emt 0:04:30]} 31. Rc1 {[%emt 0:01:30]} Qa4 {[%emt 0:01:30]} 32. Qh5 {[%emt 0:04:30]} Qe8 {[%emt 0:01:30]} 33. Ng4 {[%emt 0:01:30]} f5 {[%emt 0:05:30]} 34. Qxe8+ {[%emt 0:00:30]} Rxe8 {[%emt 0:00:00]} 35. Ne3 {[%emt 0:00:30]} Rd8 {[%emt 0:00:00]} 36. Nxd5 {[%emt 0:01:30]} Rxd5 {[%emt 0:00:30]} 37. Rc4 {[%emt 0:00:00]} Kf7 {[%emt 0:00:30]} 38. h4 {[%emt 0:00:00]} Kf6 {[%emt 0:00:00]} 39. f4 {[%emt 0:00:30]} g5 {[%emt 0:00:00]} 40. hxg5+ {[%emt 0:00:30]} hxg5 {[%emt 0:00:00]} 41. fxg5+ {[%emt 0:00:30]} Kxg5 {[%emt 0:00:00]} 42. Rc6 {[%emt 0:00:00]} Kf6 {[%emt 0:01:30]} 43. Rc4 {[%emt 0:00:00]} Kg5 {[%emt 0:03:30]} 44. Rc6 {[%emt 0:00:00]} Rxd4 {[%emt 0:00:00]} 45. Rxe6 {[%emt 0:00:00]} Kf4 {[%emt 0:00:00]} 46. Re2 {[%emt 0:04:30]} Rd3 {[%emt 0:00:30]} 47. Rf2+ {[%emt 0:01:30]} Rf3 {[%emt 0:00:30]} 48. Re2 {[%emt 0:00:00]} Re3 {[%emt 0:01:30]} 49. Rb2 {[%emt 0:03:00]} Kg4 {[%emt 0:00:30]} 50. Kf2 {[%emt 0:00:30]} f4 {[%emt 0:01:30]} 51. Rb8 {[%emt 0:00:30]} Rf3+ {[%emt 0:00:30]} 52. Kg2 {[%emt 0:00:30]} Rg3+ {[%emt 0:00:30]} 53. Kf2 {[%emt 0:00:30]} Rf3+ {[%emt 0:02:30]} 54. Kg2 {[%emt 0:00:30]} Re3 {[%emt 0:00:30]} 55. Kf2 {[%emt 0:02:30]} Re5 {[%emt 0:01:30]} 56. Rg8+ {[%emt 0:02:30]} Kf5 {[%emt 0:00:30]} 57. Kf3 {[%emt 0:00:30]} Re3+ {[%emt 0:00:30]} 58. Kf2 {[%emt 0:00:30]} Re6 {[%emt 0:01:30]} 59. Kf3 {[%emt 0:00:00]} Rf6 {[%emt 0:00:30]} 60. Rb8 {[%emt 0:01:00]} Kg5 {[%emt 0:01:30]} 61. Rg8+ {[%emt 0:00:30]} Kf5 {[%emt 0:01:30]} 62. Rb8 {[%emt 0:00:00]} Rc6 {[%emt 0:00:00]} 63. Rb5+ {[%emt 0:00:00]} Kf6 {[%emt 0:01:00]} 64. Kxf4 {[%emt 0:00:30]} Rc4+ {[%emt 0:00:00]} 65. Ke3 {[%emt 0:00:30]} Rc3+ {[%emt 0:00:00]} 1/2-1/2

[Event "8th Ali Ipek Tournament 2020"]
[Site "Ankara"]
[Date "2020.03.08"]
[Round "6.12"]
[White "Arici, Abdulvahap"]
[Black "Yenice, Yusuf Erkan"]
[Result "1-0"]
[ECO "B22"]
[WhiteElo "1346"]
[BlackElo "1514"]
[Annotator "NA"]
[PlyCount "67"]
[EventDate "2020.03.04"]
[EventType "swiss"]
[EventCountry "TUR"]
[SourceTitle "playchess.com"]
[Source "ChessBase"]
[SourceQuality "1"]
[TimeControl "5400+30"]

1. e4 {[%emt 0:00:30]} c5 {[%emt 0:21:30]} 2. Nf3 {[%emt 0:00:00]} e6 {[%emt 0:00:00]} 3. c3 {[%emt 0:00:00]} Nf6 {[%emt 0:03:00]} 4. e5 {[%emt 0:00:30]} Nd5 {[%emt 0:00:00]} 5. Bc4 {[%emt 0:00:30]} Nb6 {[%emt 0:04:00]} 6. Bb3 {[%emt 0:00:00]} c4 {[%emt 0:01:30]} 7. Bc2 {[%emt 0:00:00]} d5 {[%emt 0:01:30]} 8. exd6 {[%emt 0:00:30]} Bxd6 {[%emt 0:02:30]} 9. d4 {[%emt 0:00:30]} cxd3 {[%emt 0:01:30]} 10. Qxd3 {[%emt 0:00:30]} Nc6 {[%emt 0:02:30]} 11. O-O {[%emt 0:00:30]} Be7 {[%emt 0:06:30]} 12. Qe4 {[%emt 0:02:30]} Nd5 {[%emt 0:08:30]} 13. Rd1 {[%emt 0:06:30]} Qb6 {[%emt 0:03:30]} 14. Bb3 {[%emt 0:12:30]} Nf6 {[%emt 0:01:30]} 15. Qe2 {[%emt 0:03:30]} O-O {[%emt 0:02:30]} 16. Bg5 {[%emt 0:04:30]} a5 {[%emt 0:04:30]} 17. Bc4 {[%emt 0:01:30]} Qc7 {[%emt 0:05:30]} 18. Bxf6 {[%emt 0:05:30]} Bxf6 {[%emt 0:00:30]} 19. Na3 {[%emt 0:00:30]} Ne5 {[%emt 0:05:30]} 20. Nxe5 {[%emt 0:01:30]} Qxe5 {[%emt 0:02:30]} 21. Qxe5 {[%emt 0:00:30]} Bxe5 {[%emt 0:00:00]} 22. Rd3 {[%emt 0:00:00]} b6 {[%emt 0:04:00]} 23. Bb5 {[%emt 0:00:00]} Ba6 {[%emt 0:04:05]} 24. Bxa6 {[%emt 0:01:30]} Rxa6 {[%emt 0:00:30]} 25. Nc4 {[%emt 0:00:30]} Bb8 {[%emt 0:00:14]} 26. Rad1 {[%emt 0:00:30]} b5 {[%emt 0:01:00]} 27. Nd6 {[%emt 0:01:30]} Rb6 {[%emt 0:01:32]} 28. Ne4 {[%emt 0:01:30]} Rc6 {[%emt 0:02:24]} 29. a3 {[%emt 0:01:30]} f5 {[%emt 0:01:05]} 30. Nd2 {[%emt 0:01:30]} a4 {[%emt 0:02:30]} 31. Nf1 {[%emt 0:01:30]} Rfc8 {[%emt 0:03:24]} 32. Rd7 {[%emt 0:00:30]} Bc7 {[%emt 0:00:43]} 33. Re7 {[%emt 0:01:30]} Rd8 {[%emt 0:01:09]} 34. Rxc7 {[%emt 0:00:30]} 1-0

[Event "8th Ali Ipek Tournament 2020"]
[Site "Ankara"]
[Date "2020.03.08"]
[Round "6.13"]
[White "Ozsac, Samet Harun"]
[Black "Ari, Hasancan"]
[Result "0-1"]
[ECO "A08"]
[WhiteElo "1844"]
[BlackElo "1399"]
[Annotator "NA"]
[PlyCount "98"]
[EventDate "2020.03.04"]
[EventType "swiss"]
[EventCountry "TUR"]
[SourceTitle "playchess.com"]
[Source "ChessBase"]
[SourceQuality "1"]
[TimeControl "5400+30"]

{[%evp 8,88,-11,-27,-18,-33,-27,-37,-39,-67,-65,-57,-70,-66,-40,-87,-52,-141,-141,-150,32767,32767,-16,32767,-127,32767,-115,-131,-97,-126,-113,-138,-147,32767,-108,32767,0,32767,32767,32767,-180,-163,-166,32767,32767,32767,32767,-169,32767,32767,32767,-93,-116,-99,32767,32767,32767,32767,32767,32767,32767,-163,32767,32767,-127,-121,-72,32767,-88,32767,32767,-199,-185,32767,32767,32767,32767,32767,-505,-513,32767,-548,-597]} 1. Nf3 {[%emt 0:00:30]} d5 {[%emt 0:00:30]} 2. g3 {[%emt 0:00:00]} c5 {[%emt 0:00:30]} 3. Bg2 {[%emt 0:00:00]} Nc6 {[%emt 0:00:00]} 4. O-O {[%emt 0:00:30]} e5 {[%emt 0:01:00]} 5. d3 {[%emt 0:00:00]} f6 {[%emt 0:02:30]} 6. Nbd2 {[%emt 0:03:00]} Be6 {[%emt 0:00:30]} 7. e4 {[%emt 0:02:30]} d4 {[%emt 0:00:30] A08: King's Indian Attack.} 8. a4 {[%emt 0:01:30]} Qd7 {[%emt 0:01:30]} 9. Nc4 {[%emt 0:00:30]} Nge7 {[%emt 0:00:30]} 10. Nfd2 {[%emt 0:07:30] [#]} g5 $146 {[%emt 0:05:30]} ({Predecessor:} 10... O-O-O 11. f4 exf4 12. gxf4 Bg4 13. Nf3 Ng6 14. Qe1 h5 15. a5 h4 16. a6 b6 {0-1 (27) Strikovic,A (2495)-Suba,M (2525) Seville 1994}) 11. a5 {[%emt 0:24:30]} Ng6 {[%emt 0:02:30]} 12. Re1 {[%emt 0:03:30]} (12. Bf3 $15) 12... h5 {[%emt 0:01:30]} 13. Nf1 {[%emt 0:01:30]} Be7 {[%emt 0:00:30]} 14. Bd2 {[%emt 0:01:30]} Bh3 {[%emt 0:03:30]} (14... h4 $17 15. Bf3 Kf7) 15. Bf3 {[%emt 0:11:30]} g4 {[%emt 0:02:30]} 16. Bg2 {[%emt 0:00:30]} Bxg2 {[%emt 0:06:30]} 17. Kxg2 {[%emt 0:00:30]} h4 {[%emt 0:01:30]} 18. a6 {[%emt 0:01:30]} b6 {[%emt 0:01:30]} 19. Qe2 {[%emt 0:13:30]} Kf7 {[%emt 0:05:30]} 20. Reb1 {[%emt 0:03:30]} Nf8 {[%emt 0:01:30]} 21. Kg1 {[%emt 0:03:55]} Ng6 {[%emt 0:02:30]} ({Black should play} 21... Nb4 $17 22. Bxb4 cxb4) 22. Be1 {[%emt 0:01:21]} Rag8 {[%emt 0:01:30]} 23. c3 {[%emt 0:01:05]} Nf8 {[%emt 0:00:30]} 24. Bd2 {[%emt 0:07:14]} Ne6 {[%emt 0:01:30]} 25. Kh1 {[%emt 0:00:55]} Rg6 {[%emt 0:04:30]} 26. Na3 {[%emt 0:01:00]} Rhg8 {[%emt 0:03:30]} 27. Nc2 {[%emt 0:00:57]} Ng5 {[%emt 0:06:30]} 28. Bxg5 {[%emt 0:01:21]} Rxg5 {[%emt 0:00:30]} 29. Ne1 {[%emt 0:04:04]} (29. gxh4 $11 Rh5 30. Ng3 Rxh4 31. Nf5) 29... Rh5 {[%emt 0:00:30]} 30. Ng2 {[%emt 0:01:55]} f5 {[%emt 0:01:30]} 31. exf5 {[%emt 0:01:06]} Qxf5 {[%emt 0:00:00]} 32. Qe4 {[%emt 0:01:13]} Qxe4 {[%emt 0:01:00]} 33. dxe4 {[%emt 0:00:02]} Bg5 {[%emt 0:00:30]} 34. gxh4 {[%emt 0:01:29]} Bxh4 {[%emt 0:00:00]} 35. Ng3 {[%emt 0:00:36]} Bxg3 {[%emt 0:00:00]} 36. fxg3 {[%emt 0:00:00]} c4 {[%emt 0:00:30]} (36... Rh7 $142 37. Rf1+ Ke6) 37. Nh4 {[%emt 0:00:14]} d3 {[%emt 0:01:30]} 38. b3 {[%emt 0:01:34]} Na5 {[%emt 0:01:30]} 39. bxc4 {[%emt 0:00:59]} Nxc4 {[%emt 0:00:00]} 40. Rd1 {[%emt 0:00:25]} Rd8 {[%emt 0:01:00]} 41. Ra2 {[%emt 0:00:34]} d2 {[%emt 0:00:30]} 42. Kg1 {[%emt 0:00:26]} Rd3 {[%emt 0:00:30]} 43. Rc2 $19 {[%emt 0:00:58]} Ke6 {[%emt 0:00:30]} 44. Kf2 {[%emt 0:00:00]} Rh7 {[%emt 0:00:30]} 45. Ke2 {[%emt 0:00:34]} Re3+ {[%emt 0:00:00]} 46. Kf2 {[%emt 0:00:40]} Rxe4 {[%emt 0:00:00]} 47. Ra2 {[%emt 0:00:21]} Rf7+ {[%emt 0:00:00]} 48. Kg2 {[%emt 0:00:47]} Re2+ {[%emt 0:00:00]} 49. Kg1 {[%emt 0:00:35]} Re1+ {[%emt 0:00:00]} 0-1

[Event "8th Ali Ipek Tournament 2020"]
[Site "Ankara"]
[Date "2020.03.08"]
[Round "6.14"]
[White "Nazli, Sertan"]
[Black "Akoglanoglu, Murat Umut"]
[Result "1-0"]
[ECO "B43"]
[WhiteElo "1745"]
[BlackElo "1460"]
[Annotator "NA"]
[PlyCount "87"]
[EventDate "2020.03.04"]
[EventType "swiss"]
[EventCountry "TUR"]
[SourceTitle "playchess.com"]
[Source "ChessBase"]
[SourceQuality "1"]
[TimeControl "5400+30"]

1. e4 {[%emt 0:03:30]} c5 {[%emt 0:00:30]} 2. Nf3 {[%emt 0:00:30]} e6 {[%emt 0:00:00]} 3. d4 {[%emt 0:00:30]} cxd4 {[%emt 0:00:00]} 4. Nxd4 {[%emt 0:00:30]} a6 {[%emt 0:00:30]} 5. Nc3 {[%emt 0:00:00]} Qc7 {[%emt 0:00:00]} 6. g3 {[%emt 0:00:00]} Nf6 {[%emt 0:02:00]} 7. Bg2 {[%emt 0:05:30]} Bb4 {[%emt 0:00:30]} 8. Bd2 {[%emt 0:00:30]} Nc6 {[%emt 0:00:30]} 9. Nb3 {[%emt 0:00:30]} O-O {[%emt 0:00:30]} 10. O-O {[%emt 0:00:30]} b6 {[%emt 0:02:30]} 11. f4 {[%emt 0:02:30]} d6 {[%emt 0:01:30]} 12. a3 {[%emt 0:00:30]} Bc5+ {[%emt 0:00:30]} 13. Nxc5 {[%emt 0:00:00]} dxc5 {[%emt 0:00:30]} 14. e5 {[%emt 0:03:00]} Ne8 {[%emt 0:01:30]} 15. Qf3 {[%emt 0:11:30]} Bb7 {[%emt 0:00:30]} 16. Rad1 {[%emt 0:00:30]} Na5 {[%emt 0:10:30]} 17. Qe2 {[%emt 0:04:30]} Bxg2 {[%emt 0:04:30]} 18. Kxg2 {[%emt 0:00:30]} Qc6+ {[%emt 0:01:30]} 19. Qe4 {[%emt 0:00:30]} Qxe4+ {[%emt 0:11:30]} 20. Nxe4 {[%emt 0:00:00]} Nb7 {[%emt 0:00:30]} 21. Be3 {[%emt 0:02:00]} f5 {[%emt 0:03:30]} 22. Rd7 {[%emt 0:16:30]} Nd8 {[%emt 0:00:30]} 23. Ng5 {[%emt 0:01:30]} h6 {[%emt 0:01:30]} 24. Rxd8 {[%emt 0:00:00]} Rxd8 {[%emt 0:02:30]} 25. Nxe6 {[%emt 0:00:00]} Rd7 {[%emt 0:02:30]} 26. Nxf8 {[%emt 0:00:30]} Kxf8 {[%emt 0:00:30]} 27. Kf2 {[%emt 0:02:30]} Nc7 {[%emt 0:01:30]} 28. Ke2 {[%emt 0:00:30]} Ne6 {[%emt 0:01:30]} 29. Rb1 {[%emt 0:11:30]} b5 {[%emt 0:08:30]} 30. Rd1 {[%emt 0:01:30]} Rxd1 {[%emt 0:04:30]} 31. Kxd1 {[%emt 0:00:00]} g5 {[%emt 0:10:30]} 32. c4 {[%emt 0:02:00]} bxc4 {[%emt 0:04:30]} 33. Kd2 {[%emt 0:00:30]} Ke7 {[%emt 0:00:00]} 34. Kc3 {[%emt 0:00:30]} Kd7 {[%emt 0:00:00]} 35. Kxc4 {[%emt 0:00:00]} Kc6 {[%emt 0:00:30]} 36. b3 {[%emt 0:05:00]} gxf4 {[%emt 0:08:45]} 37. gxf4 {[%emt 0:00:30]} h5 {[%emt 0:00:27]} 38. a4 {[%emt 0:00:30]} Nc7 {[%emt 0:01:23]} 39. Bxc5 {[%emt 0:08:57]} Nd5 {[%emt 0:00:48]} 40. e6 {[%emt 0:00:56]} Nxf4 {[%emt 0:00:43]} 41. e7 {[%emt 0:00:24]} Kd7 {[%emt 0:00:01]} 42. b4 {[%emt 0:00:29]} Ng6 {[%emt 0:01:05]} 43. b5 {[%emt 0:00:27]} Nxe7 {[%emt 0:00:48]} 44. bxa6 {[%emt 0:01:20]} 1-0

[Event "8th Ali Ipek Tournament 2020"]
[Site "Ankara"]
[Date "2020.03.08"]
[Round "6.15"]
[White "Macit, Mehmet Alper"]
[Black "Banci, Dogancan"]
[Result "0-1"]
[ECO "B76"]
[WhiteElo "1466"]
[BlackElo "1634"]
[Annotator "NA"]
[PlyCount "98"]
[EventDate "2020.03.04"]
[EventType "swiss"]
[EventCountry "TUR"]
[SourceTitle "playchess.com"]
[Source "ChessBase"]
[SourceQuality "1"]
[TimeControl "5400+30"]

1. e4 {[%emt 0:00:30]} c5 {[%emt 0:00:30]} 2. Nf3 {[%emt 0:00:00]} d6 {[%emt 0:00:30]} 3. d4 {[%emt 0:00:00]} cxd4 {[%emt 0:00:00]} 4. Nxd4 {[%emt 0:00:30]} Nf6 {[%emt 0:00:00]} 5. Nc3 {[%emt 0:00:00]} g6 {[%emt 0:00:30]} 6. Be3 {[%emt 0:01:00]} Bg7 {[%emt 0:00:30]} 7. f3 {[%emt 0:00:00]} O-O {[%emt 0:00:00]} 8. Qd2 {[%emt 0:00:00]} Nc6 {[%emt 0:00:00]} 9. O-O-O {[%emt 0:00:30]} Nxd4 {[%emt 0:01:30]} 10. Bxd4 {[%emt 0:00:30]} Be6 {[%emt 0:00:30]} 11. g4 {[%emt 0:03:30]} Qa5 {[%emt 0:02:30]} 12. Kb1 {[%emt 0:00:30]} Rfc8 {[%emt 0:02:30]} 13. b3 {[%emt 0:02:30]} Rab8 {[%emt 0:28:30]} 14. h4 {[%emt 0:05:30]} b5 {[%emt 0:07:30]} 15. h5 {[%emt 0:01:30]} b4 {[%emt 0:08:30]} 16. Ne2 {[%emt 0:01:30]} Bd7 {[%emt 0:19:30]} 17. hxg6 {[%emt 0:04:30]} hxg6 {[%emt 0:00:30]} 18. g5 {[%emt 0:05:30]} Nh5 {[%emt 0:01:30]} 19. Bxg7 {[%emt 0:00:30]} Kxg7 {[%emt 0:01:30]} 20. Qd4+ {[%emt 0:02:30]} Kg8 {[%emt 0:06:41]} 21. f4 {[%emt 0:04:30]} Qc5 {[%emt 0:03:27]} 22. Qd2 {[%emt 0:04:30]} Bg4 {[%emt 0:02:22]} 23. Rh4 {[%emt 0:03:30]} Bd7 {[%emt 0:07:33]} 24. Nd4 {[%emt 0:02:30]} Qc3 {[%emt 0:00:28]} 25. Be2 {[%emt 0:03:30]} Ng3 {[%emt 0:01:46]} 26. Qxc3 {[%emt 0:06:30]} Rxc3 {[%emt 0:00:02]} 27. Bd3 {[%emt 0:01:30]} e5 {[%emt 0:02:39]} 28. fxe5 {[%emt 0:00:30]} dxe5 {[%emt 0:00:02]} 29. Nf3 {[%emt 0:02:30]} Rc5 {[%emt 0:00:26]} 30. Bc4 {[%emt 0:01:30]} Bc6 {[%emt 0:00:46]} 31. Bd5 {[%emt 0:02:30]} Bxd5 {[%emt 0:00:22]} 32. Rxd5 {[%emt 0:00:30]} Rxd5 {[%emt 0:01:04]} 33. exd5 {[%emt 0:00:30]} e4 {[%emt 0:00:26]} 34. Ne1 {[%emt 0:06:30]} Rd8 {[%emt 0:00:35]} 35. Rg4 {[%emt 0:00:30]} Rxd5 {[%emt 0:01:35]} 36. Kb2 {[%emt 0:00:30]} Nf5 {[%emt 0:00:35]} 37. Rxe4 {[%emt 0:01:30]} a5 {[%emt 0:00:05]} 38. Nd3 {[%emt 0:00:30]} Nd6 {[%emt 0:00:36]} 39. Rg4 {[%emt 0:01:30]} Nb5 {[%emt 0:00:27]} 40. Nf2 {[%emt 0:01:30]} Kg7 {[%emt 0:00:40]} 41. Nd3 {[%emt 0:01:30]} Na3 {[%emt 0:00:29]} 42. Rg3 {[%emt 0:00:30]} Nb5 {[%emt 0:00:26]} 43. Nf4 {[%emt 0:00:30]} Rd2 {[%emt 0:00:23]} 44. Rd3 {[%emt 0:01:30]} Rf2 {[%emt 0:00:32]} 45. Nh3 {[%emt 0:01:30]} Rh2 {[%emt 0:00:25]} 46. Rd5 {[%emt 0:04:30]} Na3 {[%emt 0:00:19]} 47. Rxa5 {[%emt 0:01:30]} Rxc2+ {[%emt 0:00:53]} 48. Ka1 {[%emt 0:00:30]} Rc1+ {[%emt 0:00:30]} 49. Kb2 {[%emt 0:00:00]} Rb1# {[%emt 0:00:00]} 0-1

[Event "8th Ali Ipek Tournament 2020"]
[Site "Ankara"]
[Date "2020.03.08"]
[Round "6.16"]
[White "Saltik, Suleyman"]
[Black "Yilmaz, Zulfikar Baran"]
[Result "1-0"]
[ECO "B52"]
[WhiteElo "1658"]
[BlackElo "1370"]
[Annotator "NA"]
[PlyCount "77"]
[EventDate "2020.03.04"]
[EventType "swiss"]
[EventCountry "TUR"]
[SourceTitle "playchess.com"]
[Source "ChessBase"]
[SourceQuality "1"]
[TimeControl "5400+30"]

1. e4 {[%emt 0:00:30]} c5 {[%emt 0:00:30]} 2. Nf3 {[%emt 0:00:30]} d6 {[%emt 0:00:00]} 3. Bb5+ {[%emt 0:00:00]} Bd7 {[%emt 0:00:00]} 4. Bxd7+ {[%emt 0:00:00]} Qxd7 {[%emt 0:00:00]} 5. O-O {[%emt 0:00:30]} Nf6 {[%emt 0:00:00]} 6. Re1 {[%emt 0:00:30]} g6 {[%emt 0:00:30]} 7. e5 {[%emt 0:00:30]} dxe5 {[%emt 0:01:30]} 8. Nxe5 {[%emt 0:00:30]} Qc7 {[%emt 0:00:30]} 9. Nc3 {[%emt 0:01:30]} a6 {[%emt 0:00:30]} 10. d4 {[%emt 0:02:30]} cxd4 {[%emt 0:01:30]} 11. Qxd4 {[%emt 0:00:30]} Bg7 {[%emt 0:02:30]} 12. Bf4 {[%emt 0:02:30]} Qc8 {[%emt 0:25:30]} 13. Na4 {[%emt 0:08:30]} Nfd7 {[%emt 0:05:30]} 14. Bh6 {[%emt 0:14:30]} Nc6 {[%emt 0:02:30]} 15. Nxc6 {[%emt 0:00:30]} Qxc6 {[%emt 0:21:30]} 16. Bxg7 {[%emt 0:01:30]} Rg8 {[%emt 0:00:00]} 17. Be5 {[%emt 0:00:30]} Nxe5 {[%emt 0:00:00]} 18. Qxe5 {[%emt 0:00:30]} e6 {[%emt 0:00:30]} 19. Nc3 {[%emt 0:00:30]} Rd8 {[%emt 0:00:00]} 20. Ne4 {[%emt 0:00:30]} Ke7 {[%emt 0:00:00]} 21. Qf6+ {[%emt 0:00:30]} Ke8 {[%emt 0:01:30]} 22. Rad1 {[%emt 0:00:30]} Rd5 {[%emt 0:00:30]} 23. c4 {[%emt 0:01:30]} Rd7 {[%emt 0:00:30]} 24. Qe5 {[%emt 0:01:30]} Ke7 {[%emt 0:01:30]} 25. Rxd7+ {[%emt 0:00:00]} Qxd7 {[%emt 0:00:30]} 26. Nf6 {[%emt 0:00:00]} Qd8 {[%emt 0:00:30]} 27. Nxg8+ {[%emt 0:00:30]} Qxg8 {[%emt 0:00:00]} 28. Rd1 {[%emt 0:00:30]} Qc8 {[%emt 0:00:00]} 29. c5 {[%emt 0:00:30]} Qc6 {[%emt 0:00:30]} 30. Qd6+ {[%emt 0:00:00]} Qxd6 {[%emt 0:00:00]} 31. Rxd6 {[%emt 0:00:00]} f5 {[%emt 0:01:00]} 32. Rb6 {[%emt 0:00:30]} e5 {[%emt 0:00:30]} 33. Rxb7+ {[%emt 0:00:00]} Kd8 {[%emt 0:00:00]} 34. Rxh7 {[%emt 0:00:00]} e4 {[%emt 0:00:00]} 35. Rg7 {[%emt 0:00:30]} f4 {[%emt 0:00:00]} 36. Rxg6 {[%emt 0:00:30]} e3 {[%emt 0:00:00]} 37. fxe3 {[%emt 0:00:00]} fxe3 {[%emt 0:00:30]} 38. Rg7 {[%emt 0:00:00]} e2 {[%emt 0:00:00]} 39. Kf2 {[%emt 0:00:00]} 1-0